[Event "44th Chess Olympiad Women 2022"]
[Site "Chennai"]
[Date "2022.08.01"]
[Round "4.48"]
[White "Lebel-Arias, Julia"]
[Black "Laaribi, Mariem"]
[Result "1-0"]
[WhiteElo "1660"]
[BlackElo "1278"]
[Annotator "NA RC"]
[PlyCount "139"]
[EventDate "2022.??.??"]
[TimeControl "60"]

1. d4 {[%emt 0:00:10]} f5 {[%emt 0:00:08]} 2. Nc3 {[%emt 0:03:04]} e6 {[%emt 0:
00:00]} 3. e4 {[%emt 0:00:22]} Be7 {[%emt 0:01:21]} 4. exf5 {[%emt 0:00:53]}
exf5 {[%emt 0:00:21]} 5. Bc4 {[%emt 0:00:17]} Nf6 {[%emt 0:00:30]} 6. Qf3 {
[%emt 0:02:23]} Nc6 {[%emt 0:00:54]} 7. Nge2 {[%emt 0:00:44]} d6 {[%emt 0:00:
00]} 8. Bf4 {[%emt 0:01:30]} a6 {[%emt 0:01:39]} 9. a4 {[%emt 0:03:20]} Bd7 {
[%emt 0:07:36]} 10. Bb3 {[%emt 0:00:25]} Qc8 {[%emt 0:03:32]} 11. Nd5 {[%emt 0:
00:00]} Ne4 {[%emt 0:06:04]} 12. Nxe7 {[%emt 0:01:38]} Nxe7 {[%emt 0:00:45]}
13. Qh5+ {[%emt 0:01:02]} Ng6 {[%emt 0:01:01]} 14. f3 {[%emt 0:06:26]} Nf6 {
[%emt 0:01:02]} 15. Qg5 {[%emt 0:00:59]} Be6 {[%emt 0:01:53]} 16. c4 {[%emt 0:
00:00]} Bf7 {[%emt 0:01:36]} 17. Bd2 {[%emt 0:01:39]} O-O {[%emt 0:01:24]} 18.
Bc3 {[%emt 0:08:12]} h6 {[%emt 0:03:55]} 19. Qd2 {[%emt 0:00:26]} Re8 {[%emt 0:
00:00]} 20. O-O {[%emt 0:00:45]} Qe6 {[%emt 0:03:47]} 21. Nf4 {[%emt 0:00:34]}
Qe3+ {[%emt 0:03:14]} 22. Qxe3 {[%emt 0:00:17]} Rxe3 {[%emt 0:00:14]} 23. Nxg6
{[%emt 0:00:39]} Bxg6 {[%emt 0:00:27]} 24. Rfe1 {[%emt 0:00:32]} Ree8 {[%emt 0:
00:00]} 25. Kf2 {[%emt 0:00:41]} Bf7 {[%emt 0:01:58]} 26. d5 {[%emt 0:01:59]}
Nd7 {[%emt 0:01:19]} 27. Bc2 {[%emt 0:00:14]} f4 {[%emt 0:01:50]} 28. g3 {
[%emt 0:01:43]} fxg3+ {[%emt 0:00:45]} 29. hxg3 {[%emt 0:00:30]} Rf8 {[%emt 0:
00:00]} 30. Re7 {[%emt 0:01:06]} Nb6 {[%emt 0:09:16]} 31. b3 {[%emt 0:00:49]}
Rfe8 {[%emt 0:07:39]} 32. Rxc7 {[%emt 0:00:38]} Rab8 {[%emt 0:01:14]} 33. Bf5 {
[%emt 0:00:52]} Na8 {[%emt 0:02:06]} 34. Rd7 {[%emt 0:00:27]} Red8 {[%emt 0:00:
00]} 35. Re7 {[%emt 0:00:53]} Kf8 {[%emt 0:09:35]} 36. Rae1 {[%emt 0:00:30]}
Re8 {[%emt 0:02:26]} 37. Rxe8+ {[%emt 0:01:21]} Rxe8 {[%emt 0:02:43]} 38. Rxe8+
{[%emt 0:00:13]} Bxe8 {[%emt 0:00:21]} 39. a5 {[%emt 0:00:48]} b5 {[%emt 0:00:
00]} 40. axb6 {[%emt 0:00:19]} Nxb6 {[%emt 0:00:23]} 41. Ba5 {[%emt 0:31:11]}
Nd7 {[%emt 0:32:41]} 42. Bxd7 {[%emt 0:05:00]} Bxd7 {[%emt 0:00:14]} 43. Ke3 {
[%emt 0:01:08]} Ke7 {[%emt 0:01:17]} 44. Kd4 {[%emt 0:00:10]} g5 {[%emt 0:00:
00]} 45. b4 {[%emt 0:00:19]} h5 {[%emt 0:00:50]} 46. Ke3 {[%emt 0:01:01]} Be8 {
[%emt 0:02:31]} 47. c5 {[%emt 0:00:30]} dxc5 {[%emt 0:01:28]} 48. bxc5 {
[%emt 0:00:11]} Kd7 {[%emt 0:01:10]} 49. Ke4 {[%emt 0:03:35]} Bg6+ {[%emt 0:00:
00]} 50. Ke5 {[%emt 0:00:08]} h4 {[%emt 0:00:51]} 51. c6+ {[%emt 0:00:13]} Kc8
{[%emt 0:00:51]} 52. gxh4 {[%emt 0:03:35]} gxh4 {[%emt 0:00:57]} 53. d6 {
[%emt 0:00:56]} Be8 {[%emt 0:00:27]} 54. d7+ {[%emt 0:00:10]} Bxd7 {[%emt 0:00:
00]} 55. cxd7+ {[%emt 0:00:13]} Kxd7 {[%emt 0:00:17]} 56. Kf4 {[%emt 0:00:06]}
Ke7 {[%emt 0:01:56]} 57. Kg4 {[%emt 0:00:09]} Kf6 {[%emt 0:01:29]} 58. Kxh4 {
[%emt 0:00:11]} Kf5 {[%emt 0:00:23]} 59. Kg3 {[%emt 0:00:11]} Kg5 {[%emt 0:00:
00]} 60. f4+ {[%emt 0:01:27]} Kf5 {[%emt 0:00:34]} 61. Kf3 {[%emt 0:00:09]} Kf6
{[%emt 0:00:18]} 62. Ke4 {[%emt 0:00:09]} Ke6 {[%emt 0:00:17]} 63. f5+ {
[%emt 0:00:09]} Kf6 {[%emt 0:00:53]} 64. Kf4 {[%emt 0:00:29]} Kf7 {[%emt 0:00:
00]} 65. Ke5 {[%emt 0:00:07]} Ke7 {[%emt 0:00:15]} 66. f6+ {[%emt 0:00:25]} Kf7
{[%emt 0:00:11]} 67. Kf5 {[%emt 0:00:14]} Kf8 {[%emt 0:00:54]} 68. Ke6 {
[%emt 0:01:33]} Ke8 {[%emt 0:00:01]} 69. f7+ {[%emt 0:00:11]} Kf8 {[%emt 0:00:
00]} 70. Bb4+ {[%emt 0:00:12]} 1-0

[Event "44th Chess Olympiad Women 2022"]
[Site "Chennai"]
[Date "2022.08.01"]
[Round "4.48"]
[White "Meddeb, Chadha"]
[Black "Berezovska, Svetlana"]
[Result "1-0"]
[WhiteElo "1561"]
[BlackElo "1781"]
[Annotator "NA RC"]
[PlyCount "71"]
[EventDate "2022.??.??"]
[TimeControl "60"]

1. e4 {[%emt 0:00:08]} c5 {[%emt 0:00:04]} 2. Nf3 {[%emt 0:00:09]} e6 {[%emt 0:
00:00]} 3. d4 {[%emt 0:00:37]} cxd4 {[%emt 0:00:05]} 4. Nxd4 {[%emt 0:00:07]}
a6 {[%emt 0:00:07]} 5. Nc3 {[%emt 0:01:55]} Qc7 {[%emt 0:00:14]} 6. Be2 {
[%emt 0:08:25]} b5 {[%emt 0:01:09]} 7. a3 {[%emt 0:04:07]} Bb7 {[%emt 0:03:34]}
8. Qd3 {[%emt 0:06:48]} Nf6 {[%emt 0:02:35]} 9. Bd2 {[%emt 0:06:21]} Nc6 {
[%emt 0:03:46]} 10. Nxc6 {[%emt 0:03:10]} dxc6 {[%emt 0:00:17]} 11. Qe3 {
[%emt 0:05:19]} e5 {[%emt 0:05:10]} 12. O-O {[%emt 0:05:46]} g6 {[%emt 0:27:14]
} 13. Rad1 {[%emt 0:00:30]} O-O-O 14. f4 {[%emt 0:00:30]} Nd7 {[%emt 0:01:00]}
15. Kh1 {[%emt 0:00:30]} exf4 {[%emt 0:00:30]} 16. Qxf4 {[%emt 0:00:30]} Bd6 {
[%emt 0:00:30]} 17. Qg4 {[%emt 0:00:30]} h5 {[%emt 0:00:30]} 18. Qh3 {[%emt 0:
00:00]} Rdf8 {[%emt 0:00:30]} 19. Bg5 {[%emt 0:00:30]} Be5 {[%emt 0:00:30]} 20.
Bf6 {[%emt 0:00:30]} Bxf6 {[%emt 0:00:30]} 21. Rxf6 {[%emt 0:00:30]} g5 {
[%emt 0:00:30]} 22. Qf5 {[%emt 0:00:30]} g4 {[%emt 0:00:30]} 23. Rfd6 {[%emt 0:
00:00]} Rd8 {[%emt 0:00:30]} 24. Qxf7 {[%emt 0:00:30]} Ne5 {[%emt 0:00:30]} 25.
Qf5+ {[%emt 0:47:02]} Nd7 {[%emt 0:41:33]} 26. e5 {[%emt 0:00:30]} Rhf8 {
[%emt 0:00:30]} 27. Qxh5 {[%emt 0:00:30]} Rh8 {[%emt 0:00:30]} 28. Qxg4 {
[%emt 0:00:30]} Rhg8 {[%emt 0:00:30]} 29. Qh3 {[%emt 0:00:30]} Rh8 {[%emt 0:00:
00]} 30. Rxd7 {[%emt 0:00:30]} Qxd7 {[%emt 0:00:30]} 31. Qxd7+ {[%emt 0:00:30]}
Rxd7 {[%emt 0:00:30]} 32. Bg4 {[%emt 0:00:30]} Rhh7 {[%emt 0:00:30]} 33. Ne4 {
[%emt 0:00:30]} Kc7 {[%emt 0:00:30]} 34. Rxd7+ {[%emt 0:00:30]} Rxd7 {[%emt 0:
00:00]} 35. Bxd7 {[%emt 0:00:30]} Kxd7 {[%emt 0:00:30]} 36. Nc5+ {[%emt 0:00:
00]} 1-0

[Event "44th Chess Olympiad Women 2022"]
[Site "Chennai"]
[Date "2022.08.01"]
[Round "4.49"]
[White "Mwango, Lorita"]
[Black "Saraci, Rinesa"]
[Result "1-0"]
[WhiteElo "1920"]
[BlackElo "1494"]
[Annotator "NA RC"]
[PlyCount "126"]
[EventDate "2022.??.??"]
[TimeControl "60"]

1. d4 {[%emt 0:00:06]} Nf6 {[%emt 0:00:35]} 2. Nf3 {[%emt 0:00:10]} e6 {
[%emt 0:00:19]} 3. Bf4 {[%emt 0:00:21]} c5 {[%emt 0:01:02]} 4. c3 {[%emt 0:00:
00]} Nc6 {[%emt 0:01:14]} 5. e3 {[%emt 0:00:24]} d5 {[%emt 0:05:49]} 6. Nbd2 {
[%emt 0:00:40]} Nh5 {[%emt 0:03:15]} 7. Bg3 {[%emt 0:00:56]} Nxg3 {[%emt 0:00:
00]} 8. hxg3 {[%emt 0:00:25]} Qb6 {[%emt 0:02:55]} 9. Qb3 {[%emt 0:02:28]} Bd7
{[%emt 0:09:30]} 10. Be2 {[%emt 0:11:57]} Be7 {[%emt 0:06:35]} 11. O-O {
[%emt 0:05:57]} Qxb3 {[%emt 0:04:47]} 12. Nxb3 {[%emt 0:00:20]} c4 {[%emt 0:00:
00]} 13. Nbd2 {[%emt 0:00:42]} h5 {[%emt 0:04:41]} 14. Kh2 {[%emt 0:04:21]} h4
{[%emt 0:09:10]} 15. gxh4 {[%emt 0:00:42]} Bxh4 {[%emt 0:00:20]} 16. Nxh4 {
[%emt 0:00:08]} Rxh4+ {[%emt 0:00:10]} 17. Kg3 {[%emt 0:00:13]} Rh6 {[%emt 0:
00:00]} 18. f3 {[%emt 0:01:45]} O-O-O {[%emt 0:01:04]} 19. Rh1 {[%emt 0:00:27]}
Rdh8 {[%emt 0:03:45]} 20. Rxh6 {[%emt 0:00:49]} Rxh6 {[%emt 0:02:21]} 21. f4 {
[%emt 0:03:46]} Ne7 {[%emt 0:06:29]} 22. e4 {[%emt 0:07:27]} f6 {[%emt 0:03:44]
} 23. Re1 {[%emt 0:02:23]} Nc6 {[%emt 0:01:31]} 24. exd5 {[%emt 0:00:44]} exd5
{[%emt 0:09:29]} 25. Bf3 {[%emt 0:00:22]} b5 {[%emt 0:02:45]} 26. Bxd5 {
[%emt 0:00:24]} Kd8 {[%emt 0:03:46]} 27. Bf3 {[%emt 0:03:51]} Ne7 {[%emt 0:00:
00]} 28. Kf2 {[%emt 0:02:20]} Rh4 {[%emt 0:01:33]} 29. g3 {[%emt 0:02:19]} Rh2+
{[%emt 0:00:26]} 30. Bg2 {[%emt 0:00:07]} Bh3 {[%emt 0:01:36]} 31. Rg1 {
[%emt 0:00:20]} Nd5 {[%emt 0:03:17]} 32. Nf1 {[%emt 0:00:38]} Rxg2+ {[%emt 0:
00:00]} 33. Rxg2 {[%emt 0:00:06]} Bxg2 {[%emt 0:00:05]} 34. Kxg2 {[%emt 0:00:
00]} b4 {[%emt 0:00:27]} 35. cxb4 {[%emt 0:02:43]} Nxb4 {[%emt 0:00:40]} 36.
Nd2 {[%emt 0:00:00]} Nxa2 {[%emt 0:01:05]} 37. Nxc4 {[%emt 0:00:00]} Nb4 {
[%emt 0:00:27]} 38. Kf3 {[%emt 0:00:11]} Kd7 {[%emt 0:00:41]} 39. Ke4 {[%emt 0:
00:00]} g6 {[%emt 0:01:47]} 40. g4 {[%emt 0:01:36]} Nc6 {[%emt 0:00:55]} 41. d5
{[%emt 0:32:59]} Nb4 {[%emt 0:03:30]} 42. g5 {[%emt 0:00:00]} f5+ {[%emt 0:00:
00]} 43. Kd4 {[%emt 0:00:00]} Ke7 {[%emt 0:01:10]} 44. Ne5 {[%emt 0:00:00]} Kd6
{[%emt 0:01:40]} 45. Nc4+ {[%emt 0:00:00]} Ke7 {[%emt 0:02:43]} 46. b3 {
[%emt 0:00:00]} a6 {[%emt 0:04:28]} 47. Ne3 {[%emt 0:02:59]} Kd6 {[%emt 0:00:
00]} 48. Nc4+ {[%emt 0:06:19]} Ke7 {[%emt 0:00:41]} 49. d6+ {[%emt 0:00:10]}
Kd7 {[%emt 0:01:43]} 50. Ne5+ {[%emt 0:01:04]} Kxd6 {[%emt 0:00:35]} 51. Nxg6 {
[%emt 0:00:10]} Nd5 {[%emt 0:02:28]} 52. Kc4 {[%emt 0:01:20]} Kc6 {[%emt 0:00:
00]} 53. Ne5+ {[%emt 0:00:32]} Kd6 {[%emt 0:01:31]} 54. Nd3 {[%emt 0:00:36]}
Ne7 {[%emt 0:01:21]} 55. Nb4 {[%emt 0:01:54]} Ng6 {[%emt 0:00:58]} 56. Nd3 {
[%emt 0:01:50]} Ke6 {[%emt 0:02:33]} 57. Kc5 {[%emt 0:00:31]} Kd7 {[%emt 0:00:
00]} 58. Ne5+ {[%emt 0:07:25]} Nxe5 {[%emt 0:00:10]} 59. fxe5 {[%emt 0:00:12]}
f4 {[%emt 0:02:54]} 60. Kd4 {[%emt 0:00:10]} f3 {[%emt 0:00:57]} 61. Ke3 {
[%emt 0:00:02]} f2 {[%emt 0:00:20]} 62. Kxf2 {[%emt 0:00:22]} Ke6 {[%emt 0:00:
00]} 63. g6 {[%emt 0:00:21]} Kd5 {[%emt 0:00:07]} 1-0

[Event "44th Chess Olympiad Women 2022"]
[Site "Chennai"]
[Date "2022.08.01"]
[Round "4.49"]
[White "Phiri Bertha"]
[Black "Sharku, Enesa"]
[Result "1-0"]
[WhiteElo "1606"]
[BlackElo "1094"]
[Annotator "NA RC"]
[PlyCount "91"]
[EventDate "2022.??.??"]
[TimeControl "60"]

1. e4 {[%emt 0:00:09]} d5 {[%emt 0:00:19]} 2. exd5 {[%emt 0:01:10]} Qxd5 {
[%emt 0:01:19]} 3. Nf3 {[%emt 0:01:00]} Nf6 {[%emt 0:01:44]} 4. d4 {[%emt 0:00:
00]} Bg4 {[%emt 0:02:28]} 5. Be2 {[%emt 0:00:11]} e6 {[%emt 0:03:21]} 6. O-O {
[%emt 0:01:16]} Be7 {[%emt 0:03:12]} 7. Bf4 {[%emt 0:04:45]} c6 {[%emt 0:05:28]
} 8. c3 {[%emt 0:04:16]} Nbd7 {[%emt 0:08:35]} 9. Nbd2 {[%emt 0:01:19]} Qf5 {
[%emt 0:08:12]} 10. Bg3 {[%emt 0:03:07]} Nh5 {[%emt 0:06:42]} 11. Nc4 {[%emt 0:
00:00]} Nxg3 {[%emt 0:12:32]} 12. hxg3 {[%emt 0:01:06]} Qh5 {[%emt 0:05:05]}
13. Re1 {[%emt 0:01:06]} O-O {[%emt 0:00:41]} 14. Nfe5 {[%emt 0:00:53]} Nxe5 {
[%emt 0:02:06]} 15. Nxe5 {[%emt 0:00:14]} Bxe2 {[%emt 0:00:21]} 16. Qxe2 {
[%emt 0:01:35]} Qxe2 {[%emt 0:00:41]} 17. Rxe2 {[%emt 0:00:04]} Rad8 {[%emt 0:
00:00]} 18. Rd1 {[%emt 0:00:58]} f6 {[%emt 0:00:45]} 19. Nc4 {[%emt 0:02:22]}
Kf7 {[%emt 0:02:15]} 20. Rde1 {[%emt 0:00:26]} e5 {[%emt 0:01:19]} 21. dxe5 {
[%emt 0:00:18]} Bc5 {[%emt 0:02:04]} 22. b4 {[%emt 0:02:53]} Bb6 {[%emt 0:00:
00]} 23. exf6 {[%emt 0:01:21]} Kxf6 {[%emt 0:01:09]} 24. Nxb6 {[%emt 0:01:55]}
axb6 {[%emt 0:00:13]} 25. Re7 {[%emt 0:00:52]} Rd2 {[%emt 0:04:03]} 26. Rxb7 {
[%emt 0:01:42]} b5 {[%emt 0:00:56]} 27. Rc7 {[%emt 0:01:18]} Kg5 {[%emt 0:00:
00]} 28. f3 {[%emt 0:00:24]} Rf6 {[%emt 0:01:43]} 29. Rxg7+ {[%emt 0:01:40]}
Kh6 {[%emt 0:00:34]} 30. Rge7 {[%emt 0:10:17]} Rxa2 {[%emt 0:02:31]} 31. R1e6 {
[%emt 0:00:31]} Kg5 {[%emt 0:01:35]} 32. Rxf6 {[%emt 0:01:34]} Kxf6 {[%emt 0:
00:00]} 33. Rxh7 {[%emt 0:00:08]} Ke6 {[%emt 0:00:59]} 34. Rh5 {[%emt 0:00:28]}
Ra8 {[%emt 0:00:49]} 35. Rc5 {[%emt 0:00:19]} Kd6 {[%emt 0:00:44]} 36. g4 {
[%emt 0:00:11]} Rf8 {[%emt 0:00:55]} 37. Kf2 {[%emt 0:00:07]} Rf6 {[%emt 0:00:
00]} 38. g3 {[%emt 0:00:04]} Ke7 {[%emt 0:00:50]} 39. g5 {[%emt 0:00:13]} Rg6 {
[%emt 0:00:42]} 40. g4 {[%emt 0:00:15]} Kf7 {[%emt 0:01:02]} 41. f4 {[%emt 0:
00:00]} Ke7 {[%emt 0:30:50]} 42. Kf3 {[%emt 0:00:09]} Kf7 {[%emt 0:01:18]} 43.
Ke4 {[%emt 0:00:21]} Ke7 {[%emt 0:00:28]} 44. Rf5 {[%emt 0:00:39]} Ke6 {
[%emt 0:01:50]} 45. Rf6+ {[%emt 0:01:01]} Rxf6 {[%emt 0:00:32]} 46. gxf6 {
[%emt 0:00:05]} 1-0

[Event "44th Chess Olympiad Women 2022"]
[Site "Chennai"]
[Date "2022.08.01"]
[Round "4.49"]
[White "Saraci, Nita"]
[Black "Bwalya Mulwale, Lubuuto"]
[Result "0-1"]
[WhiteElo "1555"]
[BlackElo "1751"]
[Annotator "NA RC"]
[PlyCount "86"]
[EventDate "2022.??.??"]
[TimeControl "60"]

1. d4 {[%emt 0:00:04]} Nf6 {[%emt 0:00:07]} 2. Nf3 {[%emt 0:00:14]} d5 {
[%emt 0:01:07]} 3. Bf4 {[%emt 0:00:34]} c5 {[%emt 0:01:10]} 4. dxc5 {[%emt 0:
00:00]} Qa5+ {[%emt 0:00:21]} 5. c3 {[%emt 0:03:23]} Qxc5 {[%emt 0:00:14]} 6.
h3 {[%emt 0:02:32]} e6 {[%emt 0:01:54]} 7. e3 {[%emt 0:00:41]} Be7 {[%emt 0:00:
00]} 8. Be2 {[%emt 0:00:33]} O-O {[%emt 0:01:05]} 9. O-O {[%emt 0:00:04]} Nbd7
{[%emt 0:01:10]} 10. Nbd2 {[%emt 0:01:28]} b5 {[%emt 0:06:18]} 11. Nb3 {
[%emt 0:02:03]} Qb6 {[%emt 0:00:37]} 12. a3 {[%emt 0:05:00]} Bb7 {[%emt 0:00:
00]} 13. Nbd4 {[%emt 0:02:07]} a6 {[%emt 0:00:38]} 14. b4 {[%emt 0:00:23]} Rac8
{[%emt 0:02:12]} 15. Qd3 {[%emt 0:04:25]} Ne4 {[%emt 0:00:46]} 16. Rfc1 {
[%emt 0:02:45]} Bf6 {[%emt 0:03:11]} 17. Bh2 {[%emt 0:04:12]} e5 {[%emt 0:00:
00]} 18. Nb3 {[%emt 0:02:58]} Nxc3 {[%emt 0:04:16]} 19. Bxe5 {[%emt 0:18:05]}
Nxe2+ {[%emt 0:00:41]} 20. Qxe2 {[%emt 0:01:14]} Nxe5 {[%emt 0:00:31]} 21. Nxe5
{[%emt 0:01:17]} Bxe5 {[%emt 0:00:04]} 22. Ra2 {[%emt 0:00:25]} Rxc1+ {[%emt 0:
00:00]} 23. Nxc1 {[%emt 0:00:11]} d4 {[%emt 0:00:36]} 24. Nd3 {[%emt 0:01:15]}
Bb8 {[%emt 0:02:31]} 25. Nc5 {[%emt 0:01:23]} Qd6 {[%emt 0:00:41]} 26. g3 {
[%emt 0:03:12]} Ba8 {[%emt 0:02:08]} 27. Rd2 {[%emt 0:00:00]} Qc6 {[%emt 0:00:
00]} 28. f3 {[%emt 0:06:34]} dxe3 {[%emt 0:00:29]} 29. Qxe3 {[%emt 0:01:14]}
Bxg3 {[%emt 0:03:28]} 30. Kg2 {[%emt 0:00:53]} Bh4 {[%emt 0:01:12]} 31. Rd3 {
[%emt 0:02:31]} Re8 {[%emt 0:01:16]} 32. Qd2 {[%emt 0:06:55]} Qg6+ {[%emt 0:00:
00]} 33. Kf1 {[%emt 0:00:44]} Qg3 {[%emt 0:00:15]} 34. Ne4 {[%emt 0:03:23]}
Qxh3+ {[%emt 0:00:54]} 35. Qg2 {[%emt 0:00:43]} Qxg2+ {[%emt 0:00:08]} 36. Kxg2
{[%emt 0:00:14]} Bxe4 {[%emt 0:00:18]} 37. fxe4 {[%emt 0:00:20]} Rxe4 {[%emt 0:
00:00]} 38. Kf3 {[%emt 0:00:25]} Re6 {[%emt 0:00:34]} 39. Kg4 {[%emt 0:01:13]}
Bf6 {[%emt 0:00:06]} 40. a4 {[%emt 0:05:51]} Re4+ {[%emt 0:01:16]} 41. Kf3 {
[%emt 0:30:15]} Rxb4 {[%emt 0:02:52]} 42. axb5 {[%emt 0:02:19]} Rxb5 {[%emt 0:
00:00]} 43. Re3 {[%emt 0:00:43]} h5 {[%emt 0:00:16]} 0-1

[Event "44th Chess Olympiad Women 2022"]
[Site "Chennai"]
[Date "2022.08.01"]
[Round "4.50"]
[White "Estur, Grace Co"]
[Black "Otisitswe Ruth"]
[Result "0-1"]
[WhiteElo "1472"]
[BlackElo "1552"]
[Annotator "NA RC"]
[PlyCount "126"]
[EventDate "2022.??.??"]
[TimeControl "60"]

1. d4 {[%emt 0:00:04]} Nf6 {[%emt 0:00:08]} 2. b3 {[%emt 0:00:19]} g6 {[%emt 0:
00:00]} 3. Bb2 {[%emt 0:00:10]} Bg7 {[%emt 0:00:13]} 4. Nd2 {[%emt 0:00:28]} d5
{[%emt 0:00:09]} 5. e3 {[%emt 0:00:36]} Bf5 {[%emt 0:02:02]} 6. Ngf3 {[%emt 0:
00:00]} a5 {[%emt 0:00:16]} 7. Ne5 {[%emt 0:02:26]} Nbd7 {[%emt 0:06:21]} 8.
Nd3 {[%emt 0:01:02]} O-O {[%emt 0:04:46]} 9. Be2 {[%emt 0:00:46]} Qc8 {[%emt 0:
00:00]} 10. O-O {[%emt 0:01:32]} c5 {[%emt 0:01:47]} 11. c4 {[%emt 0:05:09]}
dxc4 {[%emt 0:04:22]} 12. Nxc4 {[%emt 0:05:08]} cxd4 {[%emt 0:00:36]} 13. Rc1 {
[%emt 0:01:22]} Qd8 {[%emt 0:04:32]} 14. exd4 {[%emt 0:07:48]} b5 {[%emt 0:00:
00]} 15. Nce5 {[%emt 0:01:53]} Nd5 {[%emt 0:06:14]} 16. Nc6 {[%emt 0:05:20]}
Qe8 {[%emt 0:02:08]} 17. Qd2 {[%emt 0:05:43]} b4 {[%emt 0:02:03]} 18. f4 {
[%emt 0:12:03]} N7f6 {[%emt 0:02:07]} 19. Bf3 {[%emt 0:06:38]} Ra6 {[%emt 0:00:
00]} 20. Nde5 {[%emt 0:06:29]} Bd7 {[%emt 0:10:42]} 21. Nxd7 {[%emt 0:03:34]}
Qxd7 {[%emt 0:00:06]} 22. Ne5 {[%emt 0:00:58]} Qd6 {[%emt 0:05:02]} 23. Rfe1 {
[%emt 0:03:31]} e6 {[%emt 0:01:48]} 24. Rc2 {[%emt 0:02:49]} Nd7 {[%emt 0:00:
00]} 25. Rec1 {[%emt 0:02:43]} Ne7 {[%emt 0:06:24]} 26. Qe2 {[%emt 0:05:57]}
Ra7 {[%emt 0:06:32]} 27. Nxd7 {[%emt 0:01:52]} Rxd7 {[%emt 0:02:34]} 28. Rc4 {
[%emt 0:01:26]} Qxf4 {[%emt 0:07:06]} 29. d5 {[%emt 0:00:52]} Qd6 {[%emt 0:00:
00]} 30. Bxg7 {[%emt 0:00:45]} Kxg7 {[%emt 0:00:03]} 31. dxe6 {[%emt 0:03:11]}
Qxe6 {[%emt 0:00:21]} 32. Qxe6 {[%emt 0:01:23]} fxe6 {[%emt 0:00:04]} 33. Rc7 {
[%emt 0:01:17]} Rfd8 {[%emt 0:01:04]} 34. Bg4 {[%emt 0:01:41]} Nf5 {[%emt 0:00:
00]} 35. Rxd7+ {[%emt 0:01:16]} Rxd7 {[%emt 0:00:05]} 36. Re1 {[%emt 0:01:44]}
Kf6 {[%emt 0:00:22]} 37. h4 {[%emt 0:01:06]} Rd2 {[%emt 0:01:12]} 38. h5 {
[%emt 0:02:31]} Rxa2 {[%emt 0:00:07]} 39. hxg6 {[%emt 0:01:15]} hxg6 {[%emt 0:
00:00]} 40. Rf1 {[%emt 0:01:23]} Ra3 {[%emt 0:00:19]} 41. Bd1 {[%emt 0:30:46]}
Kg5 {[%emt 0:30:35]} 42. Rf3 {[%emt 0:01:15]} e5 {[%emt 0:00:11]} 43. Rd3 {
[%emt 0:00:31]} Nd4 {[%emt 0:00:55]} 44. Kf2 {[%emt 0:00:25]} a4 {[%emt 0:00:
00]} 45. Rg3+ {[%emt 0:01:19]} Kf6 {[%emt 0:00:34]} 46. bxa4 {[%emt 0:00:53]}
Rxg3 {[%emt 0:00:15]} 47. Kxg3 {[%emt 0:00:19]} b3 {[%emt 0:00:04]} 48. Bxb3 {
[%emt 0:00:54]} Nxb3 {[%emt 0:00:05]} 49. Kf3 {[%emt 0:00:13]} Kf5 {[%emt 0:00:
00]} 50. g4+ {[%emt 0:00:30]} Kg5 {[%emt 0:00:44]} 51. Kg3 {[%emt 0:00:19]} e4
{[%emt 0:00:10]} 52. Kh3 {[%emt 0:00:57]} Kf4 {[%emt 0:00:06]} 53. g5 {[%emt 0:
00:00]} Kxg5 {[%emt 0:00:10]} 54. Kg3 {[%emt 0:00:09]} Kf5 {[%emt 0:00:05]} 55.
Kf2 {[%emt 0:00:16]} Kf4 {[%emt 0:00:05]} 56. Ke2 {[%emt 0:00:22]} g5 {[%emt 0:
00:00]} 57. Kf2 {[%emt 0:00:14]} e3+ {[%emt 0:00:05]} 58. Ke2 {[%emt 0:00:18]}
g4 {[%emt 0:00:05]} 59. Ke1 {[%emt 0:00:30]} Kf3 {[%emt 0:00:15]} 60. Kf1 {
[%emt 0:00:31]} e2+ {[%emt 0:00:07]} 61. Ke1 {[%emt 0:00:19]} g3 {[%emt 0:00:
00]} 62. a5 {[%emt 0:00:20]} g2 {[%emt 0:00:05]} 63. a6 {[%emt 0:01:18]} g1=Q#
{[%emt 0:00:08]} 0-1

[Event "44th Chess Olympiad Women 2022"]
[Site "Chennai"]
[Date "2022.08.01"]
[Round "4.50"]
[White "Marape, Naledi"]
[Black "Nacario, Ruth"]
[Result "1-0"]
[WhiteElo "1714"]
[BlackElo "1552"]
[Annotator "NA RC"]
[PlyCount "61"]
[EventDate "2022.??.??"]
[TimeControl "60"]

1. e4 {[%emt 0:00:03]} d6 {[%emt 0:00:13]} 2. d4 {[%emt 0:00:35]} Nf6 {[%emt 0:
00:00]} 3. Nc3 {[%emt 0:00:14]} g6 {[%emt 0:00:46]} 4. f3 {[%emt 0:00:12]} Bg7
{[%emt 0:00:40]} 5. Be3 {[%emt 0:00:10]} c6 {[%emt 0:01:12]} 6. Qd2 {[%emt 0:
00:00]} O-O {[%emt 0:03:38]} 7. Bh6 {[%emt 0:00:59]} e5 {[%emt 0:03:38]} 8.
Bxg7 {[%emt 0:00:38]} Kxg7 {[%emt 0:00:05]} 9. O-O-O {[%emt 0:00:06]} Qc7 {
[%emt 0:04:27]} 10. g4 {[%emt 0:01:51]} b5 {[%emt 0:06:15]} 11. h4 {[%emt 0:00:
00]} a5 {[%emt 0:07:07]} 12. h5 {[%emt 0:00:41]} Ng8 {[%emt 0:08:53]} 13. Qh2 {
[%emt 0:03:36]} Qe7 {[%emt 0:04:19]} 14. hxg6 {[%emt 0:03:50]} Qg5+ {[%emt 0:
00:00]} 15. Kb1 {[%emt 0:02:49]} Qxg6 {[%emt 0:00:45]} 16. dxe5 {[%emt 0:00:19]
} dxe5 {[%emt 0:01:43]} 17. Qxe5+ {[%emt 0:00:13]} f6 {[%emt 0:03:58]} 18. Qc7+
{[%emt 0:03:38]} Qf7 {[%emt 0:03:05]} 19. Qh2 {[%emt 0:03:00]} Qg6 {[%emt 0:00:
00]} 20. Bd3 {[%emt 0:07:30]} h6 {[%emt 0:17:20]} 21. Nge2 {[%emt 0:02:27]} Qf7
{[%emt 0:04:38]} 22. Nd4 {[%emt 0:03:43]} Qg6 {[%emt 0:13:29]} 23. e5 {[%emt 0:
00:00]} Qg5 {[%emt 0:01:48]} 24. f4 {[%emt 0:00:13]} Qxg4 {[%emt 0:00:58]} 25.
Rdg1 {[%emt 0:00:07]} Qxg1+ {[%emt 0:00:24]} 26. Rxg1+ {[%emt 0:00:14]} Kf7 {
[%emt 0:00:13]} 27. Qh5+ {[%emt 0:00:18]} Ke7 {[%emt 0:00:17]} 28. Rg7+ {
[%emt 0:00:15]} Kd8 {[%emt 0:00:29]} 29. exf6 {[%emt 0:03:33]} Nxf6 {[%emt 0:
00:00]} 30. Qe5 {[%emt 0:00:09]} Ng8 {[%emt 0:02:03]} 31. Qc7+ {[%emt 0:00:10]}
1-0